Cogmind - Beta 15 @@@ ROGUE MODE // 2025.08.26 @ 12:44:21 Player: human Result: Destroyed by G-50 Soldier via exploding Nuclear Reactor Performance ------------- Evolutions (4) 2000 Regions Visited (11) 2200 Robots Destroyed (162) 810 Value Destroyed (9701) 9701 Prototype IDs (12) 240 Alien Tech Used (0) 0 Bonus (5248) 5248 TOTAL SCORE: 20199 Bonus ------- High Alert Combat Kills 791 Follower Combat Kills 1657 Entered Garrisons 800 Used RIF Installer 2000 Cogmind --------- Core Integrity 0/850 Matter 263/300 Energy 100/100 System Corruption 3% Temperature Cool (0) Movement Core (50) Location -6/Factory Parts ------- > --- POWER (1) -------- (None) > --- PROPULSION (4) --- (None) > --- UTILITY (7) ------ Core Analyzer Relay Coupler [NC] (9) Relay Coupler [Sentry] (9) Relay Coupler [Heavy] (15) > --- WEAPON (3) ------- (None) > --- INVENTORY (5) ---- Meta Core Cargo Storage Unit Relay Coupler [NC] (33) Improved Remote Datajack Peak State ------------ > --- POWER ------------ Particle Reactor > --- PROPULSION ------- Improved Heavy Treads Improved Heavy Treads > --- UTILITY ---------- Huge Storage Unit Core Analyzer Improved Medium Armor Plating Relay Coupler [Hunter] Relay Coupler [Heavy] > --- WEAPON ----------- KE Penetrator Railgun Improved Remote Datajack > --- INVENTORY -------- Light Nuclear Core Meta Core Compact Wheel Compact Wheel Armored Huge Wheel Improved Cooling System Cargo Storage Unit Compact Matter Pod Seismic Detector Improved Light Armor Plating Relay Coupler [NC] Relay Coupler [Swarmer] Relay Coupler [Grunt] Relay Coupler [Demolisher] Quantum Rifle Heavy Plasma Cannon KE Penetrator KE Penetrator KE Penetrator Railgun Gauss Cannon Heavy Rocket Launcher Improved Remote Datajack [Rating: 85] Favorites ----------- Power Particle Reactor Engine Light Ion Engine Power Core Micro Nuclear Core Reactor Particle Reactor Propulsion Improved Heavy Treads Treads Improved Heavy Treads Leg Improved Titanium Leg Wheel Compact Wheel Flight Unit Flight Unit Utility Huge Storage Unit Device Improved Heat Sink Storage Huge Storage Unit Processor Core Analyzer Hackware Relay Coupler [Grunt] Protection Improved Medium Armor Plating Weapon KE Penetrator Energy Gun Heavy Laser Energy Cannon Heavy Plasma Cannon Ballistic Gun KE Penetrator Ballistic Cannon Hypervelocity Gauss Cannon Launcher Missile Launcher Special Weapon Improved Remote Datajack Impact Weapon Great Maul Slashing Weapon Mining Claw Special Melee Weapon Improved Datajack Build | -11 -10 -10 -8 -8 -8 -8 -7 -7 -7 -7 -6 ------- Run | Yrd Mat Sub Mat Gar Mat Gar Fac Gar Fac Gar Fac Slots Evolved 8 | . . . 4 . . . 2 . . . 2 Power . | . . . . . . . . . . . . Propulsion 2 | . . . 2 . . . . . . . . Utility 5 | . . . 1 . . . 2 . . . 2 Weapon 1 | . . . 1 . . . . . . . . Parts Attached 178 | 6 9 13 29 11 17 9 10 26 18 12 18 Power 17 | 1 . 2 3 1 2 1 . 4 . 2 1 Engine 11 | 1 . 2 2 1 2 1 . 1 . . 1 Core 5 | . . . 1 . . . . 2 . 2 . Reactor 1 | . . . . . . . . 1 . . . Propulsion 48 | 2 2 3 13 . 6 4 2 4 1 4 7 Treads 11 | . 2 1 . . 3 . . 4 1 . . Leg 6 | . . . 6 . . . . . . . . Wheel 27 | 2 . 2 7 . 3 . 2 . . 4 7 Hover . | . . . . . . . . . . . . Flight 4 | . . . . . . 4 . . . . . Utility 64 | 1 4 2 6 3 5 2 6 12 13 5 5 Device 12 | . 1 2 2 1 . 1 1 2 2 . . Storage 6 | 1 1 . . 1 . . . 1 2 . . Processor 2 | . 1 . . . . . . . 1 . . Hackware 35 | . . . . . 5 1 3 9 8 4 5 Protection 9 | . 1 . 4 1 . . 2 . . 1 . Artifact . | . . . . . . . . . . . . Weapon 49 | 2 3 6 7 7 4 2 2 6 4 1 5 Energy Gun 10 | 2 . . 5 . . 1 . 1 . . 1 Energy Cannon 3 | . 1 . . . . . 1 1 . . . Ballistic Gun 18 | . 1 5 1 3 3 . . 2 1 1 1 Ballistic Cannon 8 | . . 1 1 . 1 . 1 . 2 . 2 Launcher 3 | . . . . 2 . . . . . . 1 Special Weapon 4 | . . . . 1 . 1 . 1 1 . . Impact Weapon 1 | . . . . . . . . 1 . . . Slashing Weapon 1 | . 1 . . . . . . . . . . Piercing Weapon . | . . . . . . . . . . . . Special Melee Weapon 1 | . . . . 1 . . . . . . . Unidentified Prototypes 1 | . . . . . . . . 1 . . . Parts Lost 76 | . . 6 15 6 8 5 7 1 1 5 22 Power 13 | . . 2 3 . 1 . 2 1 . 2 2 Propulsion 30 | . . 2 5 2 4 3 2 . . 2 10 Utility 9 | . . 1 2 2 1 1 1 . . . 1 Weapon 24 | . . 1 5 2 2 1 2 . 1 1 9 Highest Loss Streak 9 | . . 4 9 3 4 4 4 1 1 1 8 To Critical Strikes 1 | . . . . . . . . . . . 1 Average Backups 19 | 1 10 14 14 22 24 21 22 21 21 23 20 Power . | . 1 1 . . . . . . 1 . . Propulsion 1 | . 2 2 . . . . . 1 2 1 . Utility 11 | . 3 5 7 15 15 14 14 13 9 12 15 Weapon 4 | . 3 5 3 3 5 4 4 3 5 6 3 Tool/Special . | . . . . . . . . . . . . Unused Backups 42 | . . 1 9 6 5 . . 4 2 4 11 Power 3 | . . 1 1 . 1 . . . . . . Propulsion 3 | . . . 1 . . . . . 2 . . Utility 29 | . . . 5 5 2 . . 4 . 3 10 Weapon 6 | . . . 2 1 2 . . . . 1 . Tool/Special 1 | . . . . . . . . . . . 1 Average Slot Usage (%) 84 | . 99 99 88 78 87 82 93 78 81 81 67 Engine 5 | . 14 13 5 7 8 8 6 1 . . . Core 1 | . . . . . . . . 4 . 1 3 Reactor 1 | . . . . . . . . 1 7 4 . Treads 9 | . 25 25 . . 7 4 . 13 15 6 . Wheel 9 | . 2 2 23 20 19 3 3 1 . 11 17 Flight 2 | . . . . . . 21 25 . . . . Device 6 | . 1 13 8 1 . 2 5 8 11 1 . Storage 8 | . 14 14 9 9 9 8 7 7 7 7 5 Processor 1 | . 8 . . . . . . . . 7 6 Hackware 8 | . . . . . 11 6 13 13 14 14 19 Protection 4 | . 3 . 7 14 4 3 5 4 . 1 . Energy Gun 2 | . 8 . 15 . . 3 6 1 . . . Energy Cannon 1 | . 5 3 . . . . 1 4 2 2 . Ballistic Gun 11 | . 12 17 6 18 19 10 5 3 8 15 5 Ballistic Cannon 2 | . . . 4 1 4 3 1 1 7 . 4 Special Weapon 2 | . . . . . . 5 6 4 3 3 1 Peak Build Rating 85 | 6 8 14 44 33 37 37 43 78 78 85 63 Average Rating 43 | 4 7 9 27 28 32 29 39 69 73 69 52 On Entrance 32 | . 6 8 13 24 31 31 33 37 78 70 61 Naked Turns . | . . . . . . . . . . . . Heaviest Build 178 | 11 30 33 55 118 118 112 113 122 129 178 178 Greatest Support 150 | 20 40 40 75 36 42 16 26 150 150 150 60 Greatest Overweight (x) 15 | . . 1 3 5 10 6 7 4 . 4 15 Average Overweight (x) 1 | . . . . 4 3 3 5 . . 1 2 Largest Inventory Capacity 30 | 8 15 15 15 25 25 25 25 30 25 30 30 Average Capacity 22 | 6 13 15 15 24 25 23 25 25 25 27 28 Most Carried 30 | 4 15 15 15 25 25 25 25 25 25 30 29 Average Carried 20 | 1 10 14 14 22 23 21 21 24 23 25 21 Final Capacity 30 | 8 15 15 15 25 25 25 25 25 25 30 5 Final Carried 30 | 4 15 15 15 24 23 25 18 25 24 30 5 Class Distribution -------------------- 34% | Bothacker-Tank 16% | Mutant 13% | Bothacker-Mutant 8% | Scavenger-Tank 6% | Botlord-Gunner 6% | Tank 3% | Gunner 3% | Bothacker-Gunner Dominant Class ---------------- Mutant | -10/Materials Mutant | -10/Subcaves Tank | -8/Materials Scavenger-Tank | -8/Garrison Gunner | -8/Materials Bothacker-Gunner | -8/Garrison Bothacker-Tank | -7/Factory Bothacker-Tank | -7/Garrison Bothacker-Tank | -7/Factory Bothacker-Tank | -7/Garrison Botlord-Gunner | -6/Factory Resources | -11 -10 -10 -8 -8 -8 -8 -7 -7 -7 -7 -6 ----------- Run | Yrd Mat Sub Mat Gar Mat Gar Fac Gar Fac Gar Fac Matter Collected 6777 | 241 131 201 949 590 862 358 304 894 850 750 647 Remotely . | . . . . . . . . . . . . Salvage Created 6691 | . 242 196 1254 566 844 188 193 665 699 868 976 Parts 350 | . 19 15 59 28 49 6 8 25 52 49 40 Haulers Intercepted 2 | . . . 1 . . . . . 1 . . Recyclers Shooed 3 | . . . . . 1 . . . . . 2 Parts Field Recycled . | . . . . . . . . . . . . Retrieved Matter . | . . . . . . . . . . . . Parts Self-Destructed 5 | . . 5 . . . . . . . . . Prevented . | . . . . . . . . . . . . Kills | -11 -10 -10 -8 -8 -8 -8 -7 -7 -7 -7 -6 ------- Run | Yrd Mat Sub Mat Gar Mat Gar Fac Gar Fac Gar Fac Combat Hostiles Destroyed 138 | . 8 7 24 16 21 6 2 5 14 16 19 Guns 75 | . 1 6 15 7 13 5 . 2 8 14 4 Cannons 41 | . 7 1 8 3 5 . 2 3 5 2 5 AOE 21 | . . . . 6 3 1 . . 1 . 10 Classes Destroyed 17 | . 2 1 6 1 1 1 . . 4 . 1 Worker 10 | . . . 3 . 5 . 1 . . . 1 Builder 3 | . . . . . . . . . 2 . 1 Hauler 2 | . . . 1 . . . . . 1 . . Recycler 8 | . . . 1 . 1 . 1 . 1 . 4 Swarmer 24 | . 4 3 . 4 3 . . 3 2 3 2 Cutter 2 | . . . . . . . . . 2 . . Saboteur 1 | . . . . . . . . . . . 1 Grunt 62 | . 4 . 12 10 10 4 . 1 . 7 14 Brawler 2 | . . . . 1 . . 1 . . . . Duelist 3 | . . . 1 . 1 . 1 . . . . Protector 2 | . . . . . 1 . . . 1 . . Sentry 18 | . . . 8 . 5 . . 1 3 1 . Specialist 2 | . . . . . . . . . 2 . . Hunter 7 | . . . 3 1 1 . . . . 2 . Programmer 11 | . . . . . . 2 . . 3 4 2 Heavy 1 | . . . . . . . . . 1 . . Subdweller 4 | . . 4 . . . . . . . . . Best Kill Streak 12 | . 5 3 4 7 5 4 2 3 3 4 12 Combat Bots Only 10 | . 5 3 4 7 4 4 2 3 3 4 10 Max Kills in Single Turn 3 | . 1 2 1 2 2 2 1 1 2 2 3 Gunslinging 1 | . . 1 . . 1 1 . . . 1 . Exploded 2 | . . . . 2 2 1 . . 1 . 2 Melee . | . . . . . . . . . . . . Uniques/NPCs Destroyed . | . . . . . . . . . . . . Combat | -11 -10 -10 -8 -8 -8 -8 -7 -7 -7 -7 -6 -------- Run | Yrd Mat Sub Mat Gar Mat Gar Fac Gar Fac Gar Fac Hostile Shots Fired 1218 | . 59 53 156 91 105 78 33 89 197 142 215 Missed 396 | . 19 14 45 19 36 23 8 28 87 43 74 Hits 822 | . 40 39 111 72 69 55 25 61 110 99 141 Melee 15 | . . . 7 . 4 . 1 1 2 . . Projectile 807 | . 40 39 104 72 65 55 24 60 108 99 141 AOE 11 | . . 6 . . . . 2 . 1 . 2 Critical Strikes 35 | . . . 5 5 4 . 1 1 2 5 12 Damage Taken 12907 | . 338 899 1907 769 1120 660 527 1108 1329 1218 3032 Core 2019 | . 78 118 241 55 120 58 38 104 161 186 860 Absorbed by Shields 58 | . . . . 50 . . . . . 8 . Reduced by Siege Mode 30 | . . . . . . . . . 30 . . Core Remaining (%) 41 | 100 . 21 . . . 13 . . . 30 . Volleys Fired 546 | . 18 27 81 45 58 19 15 98 69 72 44 Largest 3 | . 2 2 3 3 3 3 3 2 3 3 3 Hottest 207 | . 80 90 207 101 98 93 200 125 174 156 129 Shots Fired 1033 | . 36 53 225 86 143 38 24 118 122 123 65 Gun 605 | . 18 44 181 53 103 26 7 21 44 82 26 Cannon 311 | . 18 9 44 26 37 8 8 61 60 23 17 Launcher 15 | . . . . 7 3 . . . . . 5 Special 102 | . . . . . . 4 9 36 18 18 17 Kinetic 649 | . 18 47 92 79 140 34 6 26 87 82 38 Thermal 267 | . 18 6 133 . . . 9 56 17 23 5 Explosive 15 | . . . . 7 3 . . . . . 5 Electromagnetic . | . . . . . . . . . . . . Robot Hit Streak 20 | . 7 18 11 7 9 6 6 18 20 12 7 Robot Miss Streak 8 | . 7 1 5 5 8 5 3 3 3 7 4 Penetration Max 1 | . . . . 1 1 1 . . 1 1 1 Secondary Targets 12 | . . 1 1 1 3 2 . . . 4 . Max Gunslinging Chain 1 | . . 1 1 1 1 1 . . . 1 . Autonomous 12 | . . . . . . . . 12 . . . Shots Hit Robots 641 | . 19 42 143 40 99 26 17 92 60 70 33 Core Hits 360 | . 8 12 52 31 90 28 6 42 22 27 42 Critical Kills 11 | . . . . . 1 . . 1 7 1 1 Critical Parts Destroyed 7 | . . . 1 . 2 . . . 4 . . Critical Strikes 34 | . . . 10 . 4 . 1 3 13 2 1 Burn 8 | . . . 7 . . . 1 . . . . Meltdown 1 | . . . . . . . . 1 . . . Destroy 20 | . . . 1 . 3 . . . 13 2 1 Blast 5 | . . . 2 . 1 . . 2 . . . Melee Attacks 56 | . 1 26 . 4 14 . . 11 . . . Impact 11 | . . . . . . . . 11 . . . Slashing 27 | . 1 26 . . . . . . . . . Piercing . | . . . . . . . . . . . . Sneak Attacks 14 | . . . . 4 9 . . 1 . . . Combat Hostiles 1 | . . . . . . . . 1 . . . Follow-up Attacks . | . . . . . . . . . . . . Damage Inflicted 15779 | . 283 597 2587 1174 2298 564 273 2025 1114 1472 3392 Guns 7908 | . 55 477 1988 550 1480 438 127 464 597 1279 453 Cannons 4799 | . 228 120 599 183 414 126 146 1503 517 193 770 Explosions 3014 | . . . . 441 404 . . . . . 2169 Melee 58 | . . . . . . . . 58 . . . Ramming . | . . . . . . . . . . . . Kinetic 8722 | . 55 525 1054 733 1894 564 108 519 852 1279 1139 Thermal 5174 | . 228 72 1533 . 97 . 165 1448 262 193 1176 Explosive 1825 | . . . . 441 307 . . . . . 1077 Electromagnetic . | . . . . . . . . . . . . Impact 58 | . . . . . . . . 58 . . . Slashing . | . . . . . . . . . . . . Piercing . | . . . . . . . . . . . . Highest Corruption 4 | . 1 1 . . 2 4 . 1 1 1 3 Average Corruption 1 | . 1 1 . . 2 3 . 1 1 1 2 Corruption Purged . | . . . . . . . . . . . . Corruption Blocked . | . . . . . . . . . . . . Effects 71 | . 3 9 . . 8 11 . 14 15 9 2 Message Errors 22 | . 1 4 . . 3 5 . 1 4 4 . Matter Fused 15 | . 1 1 . . . 3 . 5 3 2 . Heat Flow Errors 9 | . 1 1 . . 1 1 . 4 . . 1 Energy Discharges 10 | . . 2 . . . 1 . 3 3 1 . Data Loss (minor) 7 | . . 1 . . 1 1 . . 4 . . Data Loss (major) 4 | . . . . . 1 . . . . 2 1 Misfires 1 | . . . . . 1 . . . . . . Alerts 1 | . . . . . . . . . 1 . . Weapon Failures 2 | . . . . . 1 . . 1 . . . Overload Shots . | . . . . . . . . . . . . Overflow Damage 295 | . 13 . . 4 . . . 12 15 . 251 Projectiles 152 | . 13 . . . . . . 12 15 . 112 Explosions 143 | . . . . 4 . . . . . . 139 Melee . | . . . . . . . . . . . . Knockbacks 27 | . . 2 12 1 5 2 . . 1 . 4 Impact . | . . . . . . . . . . . . Kinetic 26 | . . 2 12 1 5 2 . . 1 . 3 Secondary 1 | . . . . . . . . . . . 1 Self-Inflicted Damage 417 | . . . . 52 36 . . . . . 329 Shots 10 | . . . . 2 1 . . . . . 7 Rammed . | . . . . . . . . . . . . Targets Rammed . | . . . . . . . . . . . . Kicked . | . . . . . . . . . . . . Crushed . | . . . . . . . . . . . . Highest Temperature 551 | . 316 60 551 195 158 243 210 320 150 174 205 Average Temperature 93 | . 134 22 166 75 32 110 117 84 47 43 29 Received Heat Transfer 3582 | . 54 . 765 237 486 162 81 204 186 345 1062 Effects 15 | . . . 10 . . 2 . 3 . . . Shutdowns 2 | . . . 2 . . . . . . . . Energy Bleed 3 | . . . 3 . . . . . . . . Interference 5 | . . . . . . 2 . 3 . . . Matter Decay 1 | . . . 1 . . . . . . . . Short Circuit 1 | . . . 1 . . . . . . . . Damage (minor) 2 | . . . 2 . . . . . . . . Damage (core) 1 | . . . 1 . . . . . . . . Siege Activations 3 | . . . . . . . . . 2 1 . Total Turns 46 | . . . . . . . . . 32 14 . Longest Duration 22 | . . . . . . . . . 22 14 . Martial Activations . | . . . . . . . . . . . . Shielding Activations . | . . . . . . . . . . . . Robots Disrupted . | . . . . . . . . . . . . Combat Hostiles . | . . . . . . . . . . . . Robots Corrupted . | . . . . . . . . . . . . Combat Hostiles . | . . . . . . . . . . . . Parts Fried . | . . . . . . . . . . . . Impact Corruptions . | . . . . . . . . . . . . Robots Melted 2 | . . . 1 . . . . 1 . . . Combat Hostiles 1 | . . . 1 . . . . . . . . Parts Melted 13 | . . . 9 . . . . 4 . . . Heat Transferred 7681 | . 481 148 3589 . 50 . 333 1694 400 250 736 Parts Sabotaged 1 | . . . . . . . . 1 . . . Parts Stolen . | . . . . . . . . . . . . Parts Stripped . | . . . . . . . . . . . . Power Chain Reactions . | . . . . . . . . . . . . Alert | -11 -10 -10 -8 -8 -8 -8 -7 -7 -7 -7 -6 ------- Run | Yrd Mat Sub Mat Gar Mat Gar Fac Gar Fac Gar Fac Maximum Alert Level 5 | . 1 . . 5 3 2 1 4 3 3 2 Low Security (%) 27 | 100 91 . 100 6 . . 90 24 . . 41 Level 1 18 | . 8 . . 5 50 17 9 8 38 28 9 Level 2 24 | . . . . 6 31 82 . 5 48 45 48 Level 3 17 | . . . . 44 18 . . 23 13 26 . Level 4 10 | . . . . 29 . . . 39 . . . Level 5 1 | . . . . 7 . . . . . . . High Security . | . . . . . . . . . . . . Max Security . | . . . . . . . . . . . . Peak Influence 1627 | . 211 . 164 1627 793 437 228 1472 784 1093 683 Initial 793 | . . . . 87 793 291 228 2 772 204 573 Average 524 | . 75 . 92 963 471 408 88 785 522 590 358 Influence Increases 8445 | . 344 70 775 1600 835 196 76 1660 853 999 1037 Destroy 0b10 Robot/C 3600 | . 160 60 480 320 460 120 40 620 420 440 480 Destroy 0b10 Robot/NC 200 | . . . 25 . 35 . 10 30 40 5 55 Destroy Leader 640 | . 40 10 142 30 120 10 10 20 146 50 62 Allied During Kill 437 | . . . . . 24 . . 283 85 22 23 Successful Hack 202 | . 9 . 28 21 22 16 . 21 31 42 12 Select Force Hacks 60 | . 60 . . . . . . . . . . Disable Machine 540 | . 30 . 45 75 75 . 15 . 75 . 225 Anti-Garrison Action 2000 | . . . . 1000 . 50 . 600 . 350 . Destroy Structure 511 | . . . 10 109 54 . 1 86 56 45 150 Lose Combat Pursuer 255 | . 45 . 45 45 45 . . . . 45 30 Influence Decreases 7800 | . 141 273 640 108 2013 208 510 191 2033 198 1485 Entered New Map 2657 | . . 99 . 48 834 158 209 1 700 88 520 Time Decay 2438 | . 141 174 490 . 494 . 271 . 598 . 270 Lost Part 660 | . . . 150 60 80 50 30 10 10 50 220 Lost Ally 720 | . . . . . 80 . . 180 300 60 100 Purge Threat 1325 | . . . . . 525 . . . 425 . 375 Squads Dispatched 29 | . 4 . 2 . 4 . 3 . 8 . 8 Investigation 3 | . 2 . 1 . . . . . . . . Extermination 4 | . . . . . . . . . 3 . 1 Reinforcement 13 | . 2 . 1 . 2 . 1 . 4 . 3 Assault 5 | . . . . . 1 . . . 1 . 3 Garrison 4 | . . . . . 1 . 2 . . . 1 Intercept . | . . . . . . . . . . . . Searches Triggered . | . . . . . . . . . . . . Construction Impeded 2 | . . . . . 1 . . . . . 1 Haulers Reinforced 1 | . . . . . . . . . . . 1 Active Scanning Responses . | . . . . . . . . . . . . Cargo Convoy Interrupts . | . . . . . . . . . . . . Stealth | -11 -10 -10 -8 -8 -8 -8 -7 -7 -7 -7 -6 --------- Run | Yrd Mat Sub Mat Gar Mat Gar Fac Gar Fac Gar Fac Distress Signals 10 | . 2 . 2 . 3 . . . 2 . 1 Communications Jammed . | . . . . . . . . . . . . Distress Signals . | . . . . . . . . . . . . Times Spotted 307 | . 14 8 42 21 42 10 9 44 39 32 46 Peak Tracking Total 12 | . 6 3 5 6 7 6 4 6 5 6 12 Tactical Retreats 12 | . 2 . 2 1 3 . . . . 2 2 Traps | -11 -10 -10 -8 -8 -8 -8 -7 -7 -7 -7 -6 ------- Run | Yrd Mat Sub Mat Gar Mat Gar Fac Gar Fac Gar Fac Traps Triggered 27 | . 1 . 2 11 . 2 . 3 3 3 2 Indirectly . | . . . . . . . . . . . . Trap Hack Attempts 15 | . . . . 15 . . . . . . . Triggered . | . . . . . . . . . . . . Disarmed . | . . . . . . . . . . . . Reprogrammed 1 | . . . . 1 . . . . . . . Reused . | . . . . . . . . . . . . Traps Extracted . | . . . . . . . . . . . . Installed . | . . . . . . . . . . . . Triggered . | . . . . . . . . . . . . Most Traps Carried 4 | . . . . 4 4 4 4 4 . . . Machines | -11 -10 -10 -8 -8 -8 -8 -7 -7 -7 -7 -6 ---------- Run | Yrd Mat Sub Mat Gar Mat Gar Fac Gar Fac Gar Fac Machines Disabled 58 | . 2 1 3 12 5 1 1 7 5 6 15 Max in Single Turn 4 | . 1 1 1 3 1 1 1 1 2 1 4 Garrison Access 1 | . . . . . . . . . . . 1 Garrison Relay 16 | . . . . 4 . 1 . 6 . 5 . Phase Generator 2 | . . . . 1 . . . 1 . . . Machines Repaired . | . . . . . . . . . . . . Machines Dismantled . | . . . . . . . . . . . . Machines Sabotaged . | . . . . . . . . . . . . Overloaded Fab Kills . | . . . . . . . . . . . . Hacking | -11 -10 -10 -8 -8 -8 -8 -7 -7 -7 -7 -6 --------- Run | Yrd Mat Sub Mat Gar Mat Gar Fac Gar Fac Gar Fac Machines Accessed 52 | . 5 2 12 4 10 1 1 2 8 3 4 Terminals 40 | . 2 . 10 4 9 1 . 2 5 3 4 Fabricators 2 | . . . . . . . . . 2 . . Repair Stations 2 | . 1 . 1 . . . . . . . . Recycling Units 2 | . 2 . . . . . . . . . . Scanalyzers . | . . . . . . . . . . . . Garrison Access 4 | . . . 1 . 1 . 1 . 1 . . Total Hacks 122 | . 10 5 29 9 20 1 1 6 28 4 9 Successful 62 | . 5 5 15 2 11 1 1 2 16 3 1 Failed 59 | . 5 . 13 7 9 . . 4 12 1 8 Catastrophic 6 | . . . 2 1 1 . . . 1 . 1 Database Lockouts 1 | . . . 1 . . . . . . . . Manual 76 | . 10 . 27 . 20 . . . 11 . 8 Terminals 93 | . 6 . 26 9 19 1 . 6 13 4 9 Fabricators 14 | . . . . . . . . . 14 . . Repair Stations 3 | . 2 . 1 . . . . . . . . Recycling Units 2 | . 2 . . . . . . . . . . Scanalyzers . | . . . . . . . . . . . . Garrison Access 5 | . . . 2 . 1 . 1 . 1 . . Terminal Hacks 23 | . . 5 5 2 4 1 . 2 1 3 . Record 4 | . . 4 . . . . . . . . . Robot Schematic 1 | . . . . . 1 . . . . . . Robot Analysis 1 | . . . 1 . . . . . . . . Open Door 2 | . . . . 1 . . . 1 . . . Emergency Access Points 3 | . . . . 1 . . . 1 . 1 . Terminal Index 2 | . . . 1 . 1 . . . . . . Unreport Threat 2 | . . . . . 1 . . . 1 . . Registered Components 2 | . . . 1 . 1 . . . . . . Zone Layout 2 | . . . 2 . . . . . . . . Garrison Registry 1 | . . . . . . . . . . 1 . Patrol Navigation 1 | . . . . . . . . . . 1 . Security Stations 1 | . . . . . . 1 . . . . . Proto ID Catalog 1 | . . 1 . . . . . . . . . Fabricator Hacks 9 | . . . . . . . . . 9 . . Network Status 1 | . . . . . . . . . 1 . . Load Schematic 4 | . . . . . . . . . 4 . . Build 4 | . . . . . . . . . 4 . . Repair Station Hacks . | . . . . . . . . . . . . Recycling Unit Hacks . | . . . . . . . . . . . . Scanalyzer . | . . . . . . . . . . . . Garrison Access Hacks 4 | . . . 1 . 1 . 1 . 1 . . Unlock Access 4 | . . . 1 . 1 . 1 . 1 . . Unauthorized Hacks 26 | . 5 . 9 . 6 . . . 5 . 1 Terminals 21 | . 2 . 8 . 6 . . . 4 . 1 Assimilate 1 | . . . . . 1 . . . . . . Botnet 12 | . 2 . 2 . 4 . . . 3 . 1 Operators 3 | . . . 1 . 1 . . . 1 . . Skim 5 | . . . 5 . . . . . . . . Fabricators 1 | . . . . . . . . . 1 . . Prioritize 1 | . . . . . . . . . 1 . . Repair Stations 2 | . 1 . 1 . . . . . . . . Mechanics 2 | . 1 . 1 . . . . . . . . Recycling Units 2 | . 2 . . . . . . . . . . Tunnel 2 | . 2 . . . . . . . . . . Scanalyzers . | . . . . . . . . . . . . Garrison Access . | . . . . . . . . . . . . Data Cores Recovered . | . . . . . . . . . . . . Used . | . . . . . . . . . . . . Hacking Detections 39 | . 2 . 10 3 10 1 . 1 7 1 4 Full Trace Events 5 | . 1 . . 3 1 . . . . . . Feedback Events . | . . . . . . . . . . . . Feedback Blocked . | . . . . . . . . . . . . Robot Schematics Acquired 1 | . . . . . 1 . . . . . . Robots Built 4 | . . . . . . . . . 4 . . Authchips 4 | . . . . . . . . . 4 . . Time 290 | . . . . . . . . . 290 . . Total Robot Build Rating 12 | . . . . . . . . . 12 . . Part Schematics Acquired . | . . . . . . . . . . . . Parts Built . | . . . . . . . . . . . . Authchips . | . . . . . . . . . . . . Time . | . . . . . . . . . . . . Total Part Build Rating . | . . . . . . . . . . . . Parts Repaired . | . . . . . . . . . . . . Time . | . . . . . . . . . . . . Parts Recycled . | . . . . . . . . . . . . Recycled Matter . | . . . . . . . . . . . . Retrieved Matter . | . . . . . . . . . . . . Retrieved Components . | . . . . . . . . . . . . Parts Scanalyzed . | . . . . . . . . . . . . Part Schematics Acquired . | . . . . . . . . . . . . Parts Damaged . | . . . . . . . . . . . . Bothacking | -11 -10 -10 -8 -8 -8 -8 -7 -7 -7 -7 -6 ------------ Run | Yrd Mat Sub Mat Gar Mat Gar Fac Gar Fac Gar Fac Used RIF Installer 4 | . . . . 1 . 1 . 1 . 1 . Hotswap 1 | . . . . . . . . 1 . . . Patrol Navigation 1 | . . . . . . 1 . . . . . Autooverride 1 | . . . . . . . . . . 1 . Robots Hacked 61 | . . . . . 4 2 7 18 11 10 9 Non-combat 8 | . . . . . 2 . 1 . 2 . 3 Combat 53 | . . . . . 2 2 6 18 9 10 6 Autooverrided 5 | . . . . . . . . . . 3 2 Robot Hacks Applied 72 | . . . . . 8 3 7 19 15 8 12 parse_system 6 | . . . . . . 1 . 1 1 1 2 no_distress 2 | . . . . . . . 1 . 1 . . generate_echo 1 | . . . . . 1 . . . . . . find_fabricator 1 | . . . . . . . . . 1 . . check_alert 1 | . . . . . 1 . . . . . . purge_threat 8 | . . . . . 3 . . . 2 . 3 block_reporting 1 | . . . . . . . . . 1 . . map_route 2 | . . . . . . . . . . . 2 mark_security 1 | . . . . . . . . . . . 1 find_shortcuts 1 | . . . . . . 1 . . . . . find_garrison 2 | . . . . . 1 . . . 1 . . reboot_propulsion 1 | . . . . . . . . . . . 1 scatter_targeting 1 | . . . . . . . . . . 1 . overload_power 2 | . . . . . . . 2 . . . . amplify_resonance 7 | . . . . . . 1 . 2 1 1 2 disable_weapons 1 | . . . . . . . . 1 . . . reboot_system 3 | . . . . . . . . 2 . 1 . overwrite_iff 8 | . . . . . . . . 4 2 2 . formatsys_high 23 | . . . . . 2 . 4 9 5 2 1 Relay Couplers Released 67 | . . . . 19 . 3 . 24 . 18 3 Machine Destruction 60 | . . . . 15 . 3 . 24 . 18 . Programmers 7 | . . . . 4 . . . . . . 3 Attached 28 | . . . . . 3 1 3 9 4 4 4 Fabnet Peak Effective % . | . . . . . . . . . . . . Robots Rewired 7 | . . . . 2 . . . 3 . 2 . Allies Hacked . | . . . . . . . . . . . . Hacks Repelled . | . . . . . . . . . . . . Allies | -11 -10 -10 -8 -8 -8 -8 -7 -7 -7 -7 -6 -------- Run | Yrd Mat Sub Mat Gar Mat Gar Fac Gar Fac Gar Fac Total Allies 50 | . . . . 2 3 . 4 18 11 9 3 Largest Group 12 | . . . . 2 4 . 2 12 8 4 2 Highest-Rated Group 421 | . . . . 51 93 . 32 421 213 64 71 Highest-Rated Ally 80 | . . . . 31 31 . 32 80 34 39 39 Total Orders 2 | . . . . . . . 2 . . . . ROAM 1 | . . . . . . . 1 . . . . AID 1 | . . . . . . . 1 . . . . Ally Attacks 250 | . . . . . 30 . 4 84 52 36 44 Total Damage 7436 | . . . . . 688 . 49 3154 1504 664 1377 Kills 58 | . . . . . 3 . . 27 12 6 10 Allies Corrupted . | . . . . . . . . . . . . Allies Melted 2 | . . . . . . . . 1 . . 1 Intel | -11 -10 -10 -8 -8 -8 -8 -7 -7 -7 -7 -6 ------- Run | Yrd Mat Sub Mat Gar Mat Gar Fac Gar Fac Gar Fac Active Infowar (turns) 2405 | . . 1690 329 . . . . . 386 . . Optics 216 | . . 216 . . . . . . . . . Sensors 1803 | . . 1474 329 . . . . . . . . Seismic 386 | . . . . . . . . . 386 . . Robot Analysis Total 1 | . . . 1 . . . . . . . . Derelict Logs Recovered 1 | . . 1 . . . . . . . . . Drone Launches . | . . . . . . . . . . . . Drone Recoveries . | . . . . . . . . . . . . Exploration | -11 -10 -10 -8 -8 -8 -8 -7 -7 -7 -7 -6 ------------- Run | Yrd Mat Sub Mat Gar Mat Gar Fac Gar Fac Gar Fac Turns Passed 14493 | 51 524 1779 1521 1796 1316 704 655 2197 1900 1459 591 Spaces Moved 7855 | 48 293 1033 1026 1030 751 317 188 1099 957 810 303 Core 39 | 1 . . . . . 7 . . . . 31 Treads 3329 | . 259 813 . . . . . 1029 957 271 . Legs 112 | . . . 112 . . . . . . . . Wheels 4098 | 47 34 220 914 1030 751 105 116 70 . 539 272 Hover . | . . . . . . . . . . . . Flight 277 | . . . . . . 205 72 . . . . Fastest Speed 31 | 50 80 110 90 86 123 31 150 135 160 130 50 Average Speed 149 | 79 150 151 107 148 143 183 300 159 160 145 135 Slowest Speed 511 | 80 160 160 145 155 230 431 511 160 160 160 305 Overloaded Moves . | . . . . . . . . . . . . Propulsion Burnouts . | . . . . . . . . . . . . Robots Hopped . | . . . . . . . . . . . . Potential Cave-ins . | . . . . . . . . . . . . Cave-ins Triggered . | . . . . . . . . . . . . Exploration Rate (%) 53 | 4 62 58 73 99 72 34 8 96 30 89 15 Regions Visited 11 Branch Regions 1 Pre-discovered Areas 2 | . 2 . . . . . . . . . . Known Exits Taken 4 | . . . 1 . 1 . 1 . 1 . . Unknown Exits Taken 3 | 1 1 1 . . . . . . . . . Scrap Searched . | . . . . . . . . . . . . Spaces Dug 46 | . . 6 . 32 3 . . . 5 . . Terrain Destroyed 349 | . . 6 8 128 56 . . 2 11 14 124 Melee 6 | . . 6 . . . . . . . . . Projectile 64 | . . . 8 1 17 . . 2 11 14 11 AOE 279 | . . . . 127 39 . . . . . 113 Terrain Rammed . | . . . . . . . . . . . . Walls Destroyed . | . . . . . . . . . . . . Machines Disabled . | . . . . . . . . . . . . Actions | -11 -10 -10 -8 -8 -8 -8 -7 -7 -7 -7 -6 --------- Run | Yrd Mat Sub Mat Gar Mat Gar Fac Gar Fac Gar Fac Total 9658 | 57 337 1138 1276 1223 880 408 257 1443 1225 997 417 Wait 460 | . 4 13 78 31 8 . 39 89 156 31 11 Move 7848 | 47 292 1032 1026 1029 751 316 188 1098 957 809 303 Hop . | . . . . . . . . . . . . Pick Up 186 | 4 12 9 26 21 13 27 1 34 10 25 4 Fast Attach 93 | 6 1 3 25 2 8 8 3 19 4 3 11 Attach 77 | . . 5 9 3 4 2 6 22 7 10 9 Detach 13 | . . . . . . . . 10 . 2 1 Swap 101 | . 8 17 2 12 12 4 3 9 16 8 10 Drop 129 | . 1 6 29 9 11 6 1 39 6 13 8 Fire 546 | . 18 27 81 45 58 19 15 98 69 72 44 Melee 56 | . 1 26 . 4 14 . . 11 . . . Ram . | . . . . . . . . . . . . Kick . | . . . . . . . . . . . . Crush . | . . . . . . . . . . . . Escape Stasis 126 | . . . . 52 . 26 . 8 . 24 16 Rewire 8 | . . . . . 1 . 1 6 . . . Trap 15 | . . . . 15 . . . . . . . Miscellaneous . | . . . . . . . . . . . . Route ------- -11/Scrapyard -10/Materials (discovered 4 exits: [*Mat x2] / [*Min] / *Sub) -10/Subcaves (discovered 2 exits: *Mat / [*Scr]) -8/Materials (discovered 3 exits: *Fac x2 / Gar) -8/Garrison (discovered 3 exits: *Mat x3) -8/Materials (discovered 3 exits: *Fac x2 / Gar) -8/Garrison -7/Factory -7/Garrison (discovered 3 exits: *Fac x3) -7/Factory (discovered 4 exits: *Fac x2 / [*Low] / Gar) -7/Garrison (discovered 3 exits: *Fac x3) -6/Factory History --------- Turn | Location | Event 2 | -11/Scrapyard | Met Revision 17 21 | -11/Scrapyard | Discovered new exit (range 14) 52 | -11/Scrapyard | Entered Materials 154 | -10/Materials | Discovered new exit (range 7) 312 | -10/Materials | Build established: Mutant 457 | -10/Materials | Discovered new exit (range 10) 514 | -10/Materials | Discovered new exit (range 14) 566 | -10/Materials | Discovered new exit (range 8) 576 | -10/Materials | Entered Subcaves 577 | -10/Subcaves | Approached by a straggling Scientist 717 | -10/Subcaves | Scientist uncovered a shortcut to Scraptown 1003 | -10/Subcaves | Ambushed by Subdwellers from Twisted Machinery 1033 | -10/Subcaves | Core integrity fell below 50% 1077 | -10/Subcaves | Lost 4 parts (1p1n1u1w) 1617 | -10/Subcaves | Ambushed by Subdweller buried in earth 2030 | -10/Subcaves | Shifting Twisted Machinery released Battle Rifle 2043 | -10/Subcaves | Shifting Twisted Machinery released Battle Cannon 2052 | -10/Subcaves | Discovered new exit (range 8) 2153 | -10/Subcaves | Visited Clippyterm 2156 | -10/Subcaves | Learned Factory garrison access intel 2295 | -10/Subcaves | Visited 4L-MR0's lab 2307 | -10/Subcaves | Found Meta Core 2355 | -10/Subcaves | Entered Materials 2355 | -8/Materials | Evolved 4 slots: Propulsion x2, Utility x1, Weapon x1 2804 | -8/Materials | Discovered new exit (range 5) 2876 | -8/Materials | Build established: Tank 3076 | -8/Materials | Discovered new exit (range 4) 3225 | -8/Materials | Central database locked down 3315 | -8/Materials | Lost 9 parts (2p2n2u3w) 3639 | -8/Materials | Build established: Scavenger-Tank 3876 | -8/Materials | Identified exit to Garrison 3876 | -8/Materials | Entered Garrison 3900 | -8/Garrison | Triggered checkpoint 3992 | -8/Garrison | Garrison Relay disabled 4070 | -8/Garrison | Core integrity fell below 50% 4102 | -8/Garrison | Lost 3 parts (2n1w) 4106 | -8/Garrison | Triggered checkpoint 4108 | -8/Garrison | Destroyed 7 combat bots 4146 | -8/Garrison | Warlord forces raided the area 4152 | -8/Garrison | Phase Generator disabled 4228 | -8/Garrison | Triggered checkpoint 4332 | -8/Garrison | Discovered new exit (range 10) 4497 | -8/Garrison | Discovered new exit (range 8) 4621 | -8/Garrison | Installed Relay Interface Framework 4798 | -8/Garrison | Garrison Relay disabled 4820 | -8/Garrison | Triggered checkpoint 5067 | -8/Garrison | Garrison Relay disabled 5091 | -8/Garrison | Discovered new exit (range 12) 5358 | -8/Garrison | Garrison Relay disabled 5410 | -8/Garrison | Build established: Bothacker-Mutant 5672 | -8/Garrison | Entered Materials 5672 | -8/Materials | Accompanied by 2 allies 6072 | -8/Materials | First assault squad dispatched 6482 | -8/Materials | Discovered new exit (range 4) 6656 | -8/Materials | Lost 4 parts (1p1n1u1w) 6816 | -8/Materials | Discovered new exit (range 4) 6912 | -8/Materials | Build established: Gunner 6953 | -8/Materials | Garrison activated, responded to threat 6988 | -8/Materials | Identified exit to Garrison 6988 | -8/Materials | Entered Garrison 7026 | -8/Garrison | Expanded RIF knowledge: Patrol Navigation 7058 | -8/Garrison | Triggered checkpoint 7108 | -8/Garrison | Garrison Relay disabled 7230 | -8/Garrison | Triggered checkpoint 7230 | -8/Garrison | Core integrity fell below 20% 7231 | -8/Garrison | Triggered checkpoint 7279 | -8/Garrison | Lost 4 parts (2n1u1w) 7291 | -8/Garrison | Learned Factory security intel 7294 | -8/Garrison | Discovered new exit (range 12) 7692 | -8/Garrison | Entered Factory 7692 | -7/Factory | Evolved 2 slots: Utility x2 7694 | -7/Factory | Loaded intel: 4 garrison access locations 7720 | -7/Factory | Build established: Bothacker-Gunner 8106 | -7/Factory | Build established: Bothacker-Tank 8215 | -7/Factory | Garrison activated, responded to threat 8251 | -7/Factory | Lost 4 parts (1p1n1u1w) 8253 | -7/Factory | Lost 3 allies 8347 | -7/Factory | Identified exit to Garrison 8347 | -7/Factory | Entered Garrison 8347 | -7/Garrison | Accompanied by 1 ally 8401 | -7/Garrison | Triggered checkpoint 8443 | -7/Garrison | Garrison Relay disabled 8711 | -7/Garrison | P-60 Hacker assimilated allied Guardian 4c 8763 | -7/Garrison | Triggered checkpoint 8775 | -7/Garrison | Triggered checkpoint 8781 | -7/Garrison | Triggered checkpoint 8845 | -7/Garrison | Discovered new exit (range 8) 8857 | -7/Garrison | Found embedded Infiltrators 8875 | -7/Garrison | Triggered checkpoint 8899 | -7/Garrison | Garrison Relay disabled 9018 | -7/Garrison | Expanded RIF knowledge: Hotswap 9053 | -7/Garrison | Triggered checkpoint 9113 | -7/Garrison | Triggered checkpoint 9121 | -7/Garrison | Triggered checkpoint 9192 | -7/Garrison | Garrison Relay disabled 9358 | -7/Garrison | Build established: Bothacker-Mutant 9378 | -7/Garrison | Discovered new exit (range 15) 9394 | -7/Garrison | Spotted B-75 Beast 9394 | -7/Garrison | Spotted B-75 Beast 9428 | -7/Garrison | Allies destroyed B-75 Beast 9448 | -7/Garrison | Allies destroyed B-75 Beast 9474 | -7/Garrison | Lost 4 allies 9602 | -7/Garrison | Phase Generator disabled 9602 | -7/Garrison | Discovered new exit (range 14) 9684 | -7/Garrison | Garrison Relay disabled 9725 | -7/Garrison | Triggered checkpoint 9732 | -7/Garrison | Build established: Bothacker-Tank 9743 | -7/Garrison | Garrison Relay disabled 10544 | -7/Garrison | Entered Factory 10544 | -7/Factory | Accompanied by 6 allies 10607 | -7/Factory | Discovered new exit (range 11) 10705 | -7/Factory | Discovered new exit (range 12) 10740 | -7/Factory | Allied Derelicts emerged from ambush trap array 10944 | -7/Factory | First assault squad dispatched 11029 | -7/Factory | P-60 Hacker assimilated allied Guardian 4d 11032 | -7/Factory | Lost 4 allies 11211 | -7/Factory | Fabricated D-53 Grenadier? 11220 | -7/Factory | Fabricated D-53 Grenadier (x1) 11279 | -7/Factory | Fabricated D-53 Grenadier (x1) 11338 | -7/Factory | Fabricated D-53 Grenadier? 11390 | -7/Factory | Lost 9 allies 12348 | -7/Factory | Discovered new exit (range 13) 12401 | -7/Factory | Lost 3 allies 12444 | -7/Factory | Identified exit to Garrison 12444 | -7/Factory | Entered Garrison 12488 | -7/Garrison | Expanded RIF knowledge: Autooverride 12528 | -7/Garrison | Triggered checkpoint 12540 | -7/Garrison | Garrison Relay disabled 12892 | -7/Garrison | Triggered checkpoint 12965 | -7/Garrison | Garrison Relay disabled 12980 | -7/Garrison | Triggered checkpoint 13075 | -7/Garrison | Discovered new exit (range 11) 13196 | -7/Garrison | Triggered checkpoint 13201 | -7/Garrison | Core integrity fell below 50% 13274 | -7/Garrison | Triggered checkpoint 13296 | -7/Garrison | Discovered new exit (range 21) 13296 | -7/Garrison | Discovered new exit (range 36) 13296 | -7/Garrison | Discovered new exit (range 73) 13314 | -7/Garrison | Garrison Relay disabled 13454 | -7/Garrison | Triggered checkpoint 13510 | -7/Garrison | Triggered checkpoint 13516 | -7/Garrison | Garrison Relay disabled 13618 | -7/Garrison | Triggered checkpoint 13643 | -7/Garrison | Build established: Botlord-Gunner 13738 | -7/Garrison | Triggered checkpoint 13754 | -7/Garrison | Garrison Relay disabled 13903 | -7/Garrison | Entered Factory 13903 | -6/Factory | Accompanied by 2 allies 13903 | -6/Factory | Evolved 2 slots: Utility x2 14007 | -6/Factory | Lost 4 parts (2n2w) 14253 | -6/Factory | First assault squad dispatched 14254 | -6/Factory | Lost 4 parts (1p2n1w) 14357 | -6/Factory | Garrison activated, responded to threat 14372 | -6/Factory | Lost 3 allies 14379 | -6/Factory | Core integrity fell below 50% 14404 | -6/Factory | Destroyed 10 combat bots 14413 | -6/Factory | Lost 8 parts (4n4w) 14487 | -6/Factory | Core integrity fell below 20% 14494 | -6/Factory | Destroyed by G-50 Soldier via exploding Nuclear Reactor Last Messages --------------- 14480_ Destroyed Com. Wheel. 14482_ K-01 Serf collects debris. 14482_ U-05 Engineer lays Concrete. 14482_ Dropped Imp. Cooling System. 14483_ Dropped Huge Storage Unit. 14483_ U-05 Engineer lays Concrete. 14483_ Dropped Authchip [R/Combat]. 14484_ Dropped Imp. Medium Armor Plating. 14484_ Quantum Rifle destroyed. 14485_ K-01 Serf collects debris. 14485_ U-05 Engineer lays Concrete. 14486_ K-01 Serf collects debris. 14486_ U-05 Engineer lays Concrete. 14489_ Connecting with Terminal... 14493_ K-01 Serf collects debris. 14493_ U-05 Engineer lays Concrete. 14494_ Nuclear Reactor explodes. 14494_ G-67 Veteran destroyed. 14494_ Wheel destroyed. 14494_ Relay Coupler [Brawler] destroyed. Map ----- +----------------------------------------------------+ | # # "% #/# ####### | | ####### #! * # | | % # / | | " % "" # | | """" % "" # | | [[[ """" " ##/! " # | | [[ """" /!!! " # | | [[ """" % #!! # | | """" % %#%* % " | | """" "! # | | """" ####### "G # | | ## """ + | | ## # # # | | ?# ! ?????? uu## ######/#/###### | | ?# ############???????# ;#k;kk;;###### ^ | | ?# #?????????????????## ! kuRg%! # | | ?# #?????????????????# !Rui *[! """ # | | ?#+#?????????????????#T # ! = T"" + | | ??????????????????????# =g # | | ??????????????????????# g%* # | | ???????????????????#### =g ;###### | | ???????????????????# l | | ???????????????????# ? | | ???????????????????# ?? | | ???????????????????# " " ???? """ | | ???????????????????# "T" @ ????? """ | | ???????????????????# """ ????? """ | | ???????????????????###### ????????? | | ????????????????????????# ????????? | | ??????????????????????????????????????????? | | ???????????????????????????????????????????? ? ?? | | ?????????????????????????????????????????????????? | | ?????????????????????????????????????????????????? | | ?????????????????????????????????????????????????? | | ?????????????????????????????????????????????????? | | ?????????????????????????????????????????????????? | | ?????????????????????????????????????????????????? | | ?????????????????????????????????????????????????? | | ?????????????????????????????????????????????????? | | ?????????????????????????????????????????????????? | | ?????????????????????????????????????????????????? | | ?????????????????????????????????????????????????? | | ?????????????????????????????????????????????????? | | ?????????????????????????????????????????????????? | | ?????????????????????????????????????????????????? | | ?????????????????????????????????????????????????? | | ?????????????????????????????????????????????????? | | ?????????????????????????????????????????????????? | | ?????????????????????????????????????????????????? | | ?????????????????????????????????????????????????? | +----------------------------------------------------+ Best States ------------- Heat Dissipation 75 Energy Generation 23 Energy Capacity 340 Matter Stores 313 Matter Capacity 450 Sight Range 21 Robot Scan Range 14 Terrain Scan Density 10 Armor Coverage 450 Evasion (%) 63 Targeting Accuracy 5 Core Analysis 6 Recoil Reduction 4 Offensive Hacking 20 Relay Coupler Types 4 Relay Coupler Value 95 Authchip Count 4 Trap Extractor Capacity 6 Item Schematics ----------------- None Robot Schematics ------------------ D-53 Grenadier | -8/Materials | Hacked Fabricated ------------ D-53 Grenadier | x1 | -7/Factory | Authchip D-53 Grenadier | x1 | -7/Factory | Authchip D-53 Grenadier | x1 | -7/Factory | Authchip D-53 Grenadier | x1 | -7/Factory | Authchip Repaired ---------- Nothing Alien Tech Used ----------------- None Achievements -------------- Packrat Challenges ------------ None Game ------ Seed WarlordAmuletWartreads Manual? 0 Play Time 03:58:09 Cumulative 325.1 hours Start 2025.08.23 @ 14:32:57 End 2025.08.26 @ 12:44:21 Sessions 7 Manual Loads 0 Difficulty Rogue Special Mode None Game No. 253 Rogue 253 Adventurer 0 Explorer 0 Win Type - Total 3 Types 3/0/0/0/0/0/0/0/0/0 Lore% 81 Gallery% 68 Achievement% 60 Wizard Run 0 Options --------- Layout 1 ASCII 0 Keyboard 0 Movement Mouse Keybinds 0 Fullscreen 1 Font 24/Smallcaps Map View 50x35 Zoom Use 0% Tactical HUD 1 Map Filters NONE Filters NONE Steam 1 RUN: a55e1a1c-e194-47fd-827c-10ab1afd6b84